[Event "*** Titled Tuesday Blitz"]
[Site "Chess.com"]
[Date "2020.05.26"]
[Round "2"]
[White "GMaka"]
[Black "A-Fier"]
[Result "0-1"]
[WhiteElo "2394"]
[BlackElo "2757"]
[TimeControl "180+1"]
[EndTime "10:16:59 PDT"]
[Termination "A-Fier won by resignation"]

1. d4 {[%clk 0:03:00.9]} 1... Nf6 {[%clk 0:02:59.8]} 2. Bg5 {[%clk 0:02:57]}
2... Ne4 {[%clk 0:02:58.3]} 3. Bf4 {[%clk 0:02:56.6]} 3... g5 {[%clk 0:02:58.9]}
4. Be5 {[%clk 0:02:41.7]} 4... f6 {[%clk 0:02:59]} 5. e3 {[%clk 0:02:18.6]} 5...
d5 {[%clk 0:02:59.1]} 6. Bg3 {[%clk 0:02:12.4]} 6... h5 {[%clk 0:02:56.2]} 7. f3
{[%clk 0:02:04.9]} 7... Nxg3 {[%clk 0:02:56]} 8. hxg3 {[%clk 0:02:05.8]} 8...
Bf5 {[%clk 0:02:55.5]} 9. Bd3 {[%clk 0:02:03.9]} 9... Qd7 {[%clk 0:02:55.4]} 10.
g4 {[%clk 0:01:56.7]} 10... Bxd3 {[%clk 0:02:51.5]} 11. Qxd3 {[%clk 0:01:57.6]}
11... h4 {[%clk 0:02:52.1]} 12. Qg6+ {[%clk 0:01:57]} 12... Kd8 {[%clk
0:02:52.5]} 13. Nc3 {[%clk 0:01:54.4]} 13... Nc6 {[%clk 0:02:51.9]} 14. O-O-O
{[%clk 0:01:51.8]} 14... Kc8 {[%clk 0:02:32.6]} 15. Qf7 {[%clk 0:01:50.9]} 15...
b6 {[%clk 0:02:26.8]} 16. Qxd5 {[%clk 0:01:49.1]} 16... Qxd5 {[%clk 0:02:26.4]}
17. Nxd5 {[%clk 0:01:50]} 17... Kb7 {[%clk 0:02:27]} 18. Nh3 {[%clk 0:01:46.8]}
18... Rd8 {[%clk 0:02:27.1]} 19. Nc3 {[%clk 0:01:41.2]} 19... e6 {[%clk
0:02:26.8]} 20. d5 {[%clk 0:01:37.9]} 20... exd5 {[%clk 0:02:23.3]} 21. Nxd5
{[%clk 0:01:38.8]} 21... Bg7 {[%clk 0:02:21.1]} 22. e4 {[%clk 0:01:35.8]} 22...
Ne5 {[%clk 0:02:20.2]} 23. b3 {[%clk 0:01:34.6]} 23... Rhe8 {[%clk 0:02:19.1]}
24. Rd2 {[%clk 0:01:10.6]} 24... Rd6 {[%clk 0:02:17.8]} 25. Ne3 {[%clk
0:01:11.1]} 25... Rc6 {[%clk 0:02:16.1]} 26. Rhd1 {[%clk 0:01:03.8]} 26... Bf8
{[%clk 0:02:14.3]} 27. c4 {[%clk 0:00:56.4]} 27... b5 {[%clk 0:02:13.8]} 28. Rc2
{[%clk 0:00:44.2]} 28... Bc5 {[%clk 0:02:10.7]} 29. Nd5 {[%clk 0:00:37.9]} 29...
bxc4 {[%clk 0:02:10.9]} 30. bxc4 {[%clk 0:00:27.5]} 30... Ba3+ {[%clk
0:02:09.8]} 31. Kd2 {[%clk 0:00:28]} 31... Nxc4+ {[%clk 0:02:10.7]} 32. Ke2
{[%clk 0:00:28.2]} 32... Ree6 {[%clk 0:01:53.9]} 33. Rb1+ {[%clk 0:00:26.4]}
33... Nb6 {[%clk 0:01:49.9]} 34. Rxc6 {[%clk 0:00:21]} 34... Rxc6 {[%clk
0:01:50.8]} 35. Kd3 {[%clk 0:00:16.6]} 35... Kc8 {[%clk 0:01:48.1]} 36. Rb3
{[%clk 0:00:15.5]} 36... Bf8 {[%clk 0:01:43.9]} 37. Nf2 {[%clk 0:00:11.9]} 37...
Nxd5 {[%clk 0:01:43.3]} 38. exd5 {[%clk 0:00:11.9]} 38... Ra6 {[%clk 0:01:44.2]}
39. Ne4 {[%clk 0:00:06]} 39... Rxa2 {[%clk 0:01:42.7]} 40. Nxf6 {[%clk
0:00:05.7]} 40... Rxg2 {[%clk 0:01:43.3]} 41. Nh7 {[%clk 0:00:05.6]} 41... Be7
{[%clk 0:01:43]} 42. Ke4 {[%clk 0:00:06]} 42... h3 {[%clk 0:01:42.9]} 43. Rb1
{[%clk 0:00:05.5]} 43... h2 {[%clk 0:01:43.4]} 44. Rh1 {[%clk 0:00:06.1]} 44...
Bd6 {[%clk 0:01:43.7]} 45. Nxg5 {[%clk 0:00:05.7]} 45... Rg1 {[%clk 0:01:44.2]}
46. Rxh2 {[%clk 0:00:04.9]} 46... Bxh2 {[%clk 0:01:45.1]} 47. Ne6 {[%clk
0:00:04.4]} 47... a5 {[%clk 0:01:44.6]} 48. f4 {[%clk 0:00:04.7]} 48... a4
{[%clk 0:01:45.1]} 49. g5 {[%clk 0:00:04.8]} 49... a3 {[%clk 0:01:45.5]} 50. Nc5
{[%clk 0:00:04.6]} 50... a2 {[%clk 0:01:45.8]} 51. Nb3 {[%clk 0:00:05.5]} 0-1

[Event "*** Titled Tuesday Blitz"]
[Site "Chess.com"]
[Date "2020.05.26"]
[Round "2"]
[White "realmadridtv"]
[Black "1f3_2g41-0"]
[Result "1-0"]
[WhiteElo "2458"]
[BlackElo "2250"]
[TimeControl "180+1"]
[EndTime "10:16:59 PDT"]
[Termination "realmadridtv won by resignation"]

1. e4 {[%clk 0:03:00.9]} 1... c5 {[%clk 0:02:59.5]} 2. Nf3 {[%clk 0:03:00.6]}
2... d6 {[%clk 0:02:59.8]} 3. Nc3 {[%clk 0:03:01.2]} 3... Nf6 {[%clk 0:02:59.7]}
4. Bc4 {[%clk 0:02:58.5]} 4... Nc6 {[%clk 0:02:58.4]} 5. d4 {[%clk 0:02:58.1]}
5... cxd4 {[%clk 0:02:58.7]} 6. Nxd4 {[%clk 0:02:59]} 6... e5 {[%clk 0:02:57.7]}
7. Nde2 {[%clk 0:02:53.3]} 7... Be7 {[%clk 0:02:57.6]} 8. O-O {[%clk 0:02:51.8]}
8... Be6 {[%clk 0:02:58.1]} 9. Bb3 {[%clk 0:02:48.5]} 9... O-O {[%clk
0:02:57.7]} 10. Bg5 {[%clk 0:02:44.2]} 10... Bxb3 {[%clk 0:02:39.9]} 11. axb3
{[%clk 0:02:41]} 11... a6 {[%clk 0:02:24.3]} 12. Bxf6 {[%clk 0:02:29.5]} 12...
Bxf6 {[%clk 0:02:24]} 13. Nd5 {[%clk 0:02:30.4]} 13... Be7 {[%clk 0:02:18.1]}
14. Qd3 {[%clk 0:02:21.5]} 14... Rc8 {[%clk 0:02:15.9]} 15. c3 {[%clk
0:02:20.5]} 15... Nb8 {[%clk 0:02:10.3]} 16. b4 {[%clk 0:02:19.2]} 16... Nd7
{[%clk 0:02:08.4]} 17. Rad1 {[%clk 0:02:14.7]} 17... Rc6 {[%clk 0:01:52.8]} 18.
g3 {[%clk 0:01:44.1]} 18... Nb6 {[%clk 0:01:50]} 19. Nxb6 {[%clk 0:01:41.1]}
19... Qxb6 {[%clk 0:01:50.9]} 20. Kg2 {[%clk 0:01:36.5]} 20... a5 {[%clk
0:01:48]} 21. b5 {[%clk 0:01:34]} 21... Rc5 {[%clk 0:01:46.9]} 22. c4 {[%clk
0:01:32.5]} 22... Rfc8 {[%clk 0:01:46.4]} 23. b3 {[%clk 0:01:26.4]} 23... a4
{[%clk 0:01:41.9]} 24. Nc3 {[%clk 0:01:20.6]} 24... axb3 {[%clk 0:01:38.7]} 25.
Na4 {[%clk 0:01:19.3]} 25... Qc7 {[%clk 0:01:34.2]} 26. Nxc5 {[%clk 0:01:17.7]}
26... Qxc5 {[%clk 0:01:35.1]} 27. Qxb3 {[%clk 0:01:17.1]} 27... Qxc4 {[%clk
0:01:28.1]} 28. Qb1 {[%clk 0:01:12.5]} 28... Qe6 {[%clk 0:01:05]} 29. Qd3 {[%clk
0:00:52.7]} 29... g6 {[%clk 0:01:02.3]} 30. Rc1 {[%clk 0:00:50.1]} 30... Ra8
{[%clk 0:00:57.3]} 31. Rc7 {[%clk 0:00:45.4]} 31... Bd8 {[%clk 0:00:34.9]} 32.
Rxb7 {[%clk 0:00:43.2]} 32... Qc8 {[%clk 0:00:28.9]} 33. Qd5 {[%clk 0:00:41.8]}
33... Qe6 {[%clk 0:00:22.5]} 34. Qxe6 {[%clk 0:00:40.7]} 34... fxe6 {[%clk
0:00:23.4]} 35. Rd1 {[%clk 0:00:40.6]} 1-0

[Event "*** Titled Tuesday Blitz"]
[Site "Chess.com"]
[Date "2020.05.26"]
[Round "2"]
[White "GrafLermontov"]
[Black "nubair1198"]
[Result "0-1"]
[WhiteElo "2477"]
[BlackElo "2719"]
[TimeControl "180+1"]
[EndTime "10:17:00 PDT"]
[Termination "nubair1198 won by checkmate"]

1. d4 {[%clk 0:03:00.9]} 1... d5 {[%clk 0:02:59.6]} 2. c4 {[%clk 0:02:59.6]}
2... c6 {[%clk 0:02:59.7]} 3. Nf3 {[%clk 0:02:56.8]} 3... Nf6 {[%clk 0:02:57.5]}
4. e3 {[%clk 0:02:57.1]} 4... Bg4 {[%clk 0:02:56.7]} 5. Nc3 {[%clk 0:02:56.5]}
5... e6 {[%clk 0:02:56.8]} 6. h3 {[%clk 0:02:51]} 6... Bh5 {[%clk 0:02:56.6]} 7.
g4 {[%clk 0:02:48]} 7... Bg6 {[%clk 0:02:56.5]} 8. Ne5 {[%clk 0:02:48.6]} 8...
Nbd7 {[%clk 0:02:56.2]} 9. Nxg6 {[%clk 0:02:47.6]} 9... hxg6 {[%clk 0:02:56.7]}
10. cxd5 {[%clk 0:02:47.4]} 10... exd5 {[%clk 0:02:55.1]} 11. Bg2 {[%clk
0:02:47.1]} 11... Bb4 {[%clk 0:02:53.8]} 12. O-O {[%clk 0:02:46.3]} 12... Nf8
{[%clk 0:02:31.5]} 13. a3 {[%clk 0:02:34.8]} 13... Bd6 {[%clk 0:02:29.3]} 14. e4
{[%clk 0:02:30.1]} 14... dxe4 {[%clk 0:02:28]} 15. Nxe4 {[%clk 0:02:10.7]} 15...
Nxe4 {[%clk 0:02:27.2]} 16. Bxe4 {[%clk 0:02:10.2]} 16... Rxh3 {[%clk
0:02:19.4]} 17. Qe2 {[%clk 0:01:48.5]} 17... Ne6 {[%clk 0:02:03]} 18. Bxg6
{[%clk 0:01:25.2]} 18... Qf6 {[%clk 0:01:12.1]} 19. Be4 {[%clk 0:00:19.7]} 19...
Qh4 {[%clk 0:01:05.8]} 20. f4 {[%clk 0:00:19.8]} 20... Rg3+ {[%clk 0:00:49.2]}
21. Bg2 {[%clk 0:00:17.9]} 21... O-O-O {[%clk 0:00:45.7]} 22. Be3 {[%clk
0:00:14.8]} 22... Rh8 {[%clk 0:00:44.8]} 23. Kf2 {[%clk 0:00:06]} 23... Rxg4+
{[%clk 0:00:29.7]} 24. Kf3 {[%clk 0:00:05.8]} 24... Rxf4+ {[%clk 0:00:29.6]} 25.
Bxf4 {[%clk 0:00:04.8]} 25... Qxf4# {[%clk 0:00:30.5]} 0-1

[Event "*** Titled Tuesday Blitz"]
[Site "Chess.com"]
[Date "2020.05.26"]
[Round "2"]
[White "GoltsevDmitry2000"]
[Black "Grandmaster2B"]
[Result "1-0"]
[WhiteElo "2679"]
[BlackElo "2427"]
[TimeControl "180+1"]
[EndTime "10:17:02 PDT"]
[Termination "GoltsevDmitry2000 won by resignation"]

1. e4 {[%clk 0:03:00.4]} 1... c5 {[%clk 0:02:56.6]} 2. Nf3 {[%clk 0:02:59.8]}
2... d6 {[%clk 0:02:55.6]} 3. d4 {[%clk 0:03:00]} 3... cxd4 {[%clk 0:02:56.5]}
4. Nxd4 {[%clk 0:03:00.8]} 4... Nf6 {[%clk 0:02:56.8]} 5. Nc3 {[%clk 0:03:01]}
5... a6 {[%clk 0:02:55.7]} 6. Be2 {[%clk 0:03:00.9]} 6... e5 {[%clk 0:02:55.5]}
7. Nb3 {[%clk 0:03:00.8]} 7... Be6 {[%clk 0:02:56.1]} 8. a4 {[%clk 0:02:59.5]}
8... Be7 {[%clk 0:02:54.6]} 9. O-O {[%clk 0:02:59.1]} 9... O-O {[%clk
0:02:54.4]} 10. f4 {[%clk 0:02:58.9]} 10... Qc7 {[%clk 0:02:32.4]} 11. Be3
{[%clk 0:02:52.7]} 11... Nbd7 {[%clk 0:02:25.8]} 12. f5 {[%clk 0:02:39.3]} 12...
Bc4 {[%clk 0:02:22]} 13. Bxc4 {[%clk 0:02:37.6]} 13... Qxc4 {[%clk 0:02:22.9]}
14. Qd3 {[%clk 0:02:38.5]} 14... Rac8 {[%clk 0:02:13.3]} 15. h3 {[%clk
0:02:34.5]} 15... Qb4 {[%clk 0:01:54.7]} 16. g4 {[%clk 0:02:17.5]} 16... Rxc3
{[%clk 0:01:47.9]} 17. Qxc3 {[%clk 0:02:15.9]} 17... Qxc3 {[%clk 0:01:44.7]} 18.
bxc3 {[%clk 0:02:16.8]} 18... Nxe4 {[%clk 0:01:45.6]} 19. c4 {[%clk 0:02:12.3]}
19... Rc8 {[%clk 0:01:39]} 20. Rab1 {[%clk 0:02:08.5]} 20... Rxc4 {[%clk
0:01:19.5]} 21. Na5 {[%clk 0:02:07.6]} 21... Rxa4 {[%clk 0:01:19.3]} 22. Rxb7
{[%clk 0:02:03.3]} 22... Rxa5 {[%clk 0:01:01.3]} 23. Rxd7 {[%clk 0:02:02.8]}
23... Bf8 {[%clk 0:01:00.9]} 24. Rb1 {[%clk 0:02:02.3]} 24... Rb5 {[%clk
0:00:49.1]} 25. Rxb5 {[%clk 0:01:55.6]} 25... axb5 {[%clk 0:00:50]} 26. Rb7
{[%clk 0:01:56.5]} 26... d5 {[%clk 0:00:34.6]} 27. Rxb5 {[%clk 0:01:54.2]} 27...
Nc3 {[%clk 0:00:31.4]} 28. Rb8 {[%clk 0:01:47.2]} 28... d4 {[%clk 0:00:31.5]}
29. Bd2 {[%clk 0:01:46.9]} 29... f6 {[%clk 0:00:23.3]} 30. Bxc3 {[%clk
0:01:45.7]} 30... dxc3 {[%clk 0:00:24.2]} 31. Rc8 {[%clk 0:01:46.6]} 31... Kf7
{[%clk 0:00:23.6]} 32. Rxc3 {[%clk 0:01:46.8]} 32... Bd6 {[%clk 0:00:24.5]} 33.
Rc6 {[%clk 0:01:43.9]} 33... Ke7 {[%clk 0:00:24.3]} 34. Kg2 {[%clk 0:01:44.1]}
34... Kd7 {[%clk 0:00:24.5]} 35. Ra6 {[%clk 0:01:44.4]} 35... e4 {[%clk
0:00:17.4]} 36. Ra4 {[%clk 0:01:43.2]} 36... e3 {[%clk 0:00:16.2]} 37. Kf3
{[%clk 0:01:44.1]} 37... Bc5 {[%clk 0:00:16.1]} 38. Ra8 {[%clk 0:01:38.5]} 38...
Ke7 {[%clk 0:00:08.6]} 39. Rg8 {[%clk 0:01:36.9]} 39... Kf7 {[%clk 0:00:08.5]}
40. Rc8 {[%clk 0:01:36]} 40... Bb6 {[%clk 0:00:08.1]} 41. Rc6 {[%clk 0:01:35]}
41... Bd4 {[%clk 0:00:07.6]} 42. c3 {[%clk 0:01:35.5]} 42... Be5 {[%clk
0:00:05.5]} 43. Kxe3 {[%clk 0:01:35.7]} 43... Ke7 {[%clk 0:00:06.4]} 44. c4
{[%clk 0:01:36.1]} 44... Kd7 {[%clk 0:00:07.3]} 45. Ra6 {[%clk 0:01:35.3]} 45...
Kc7 {[%clk 0:00:07.7]} 46. Ra7+ {[%clk 0:01:35]} 46... Kc6 {[%clk 0:00:07.7]}
47. Rxg7 {[%clk 0:01:35.9]} 47... Kc5 {[%clk 0:00:08.6]} 48. Kd3 {[%clk
0:01:35.8]} 1-0

[Event "*** Titled Tuesday Blitz"]
[Site "Chess.com"]
[Date "2020.05.26"]
[Round "2"]
[White "slowdgehammer"]
[Black "HunterBRR"]
[Result "1-0"]
[WhiteElo "2343"]
[BlackElo "1949"]
[TimeControl "180+1"]
[EndTime "10:17:02 PDT"]
[Termination "slowdgehammer won on time"]

1. e4 {[%clk 0:02:31.8]} 1... c5 {[%clk 0:02:58.8]} 2. Nf3 {[%clk 0:02:30.4]}
2... Nc6 {[%clk 0:02:58.6]} 3. Bb5 {[%clk 0:02:29.7]} 3... g6 {[%clk 0:02:58]}
4. O-O {[%clk 0:02:29.7]} 4... Bg7 {[%clk 0:02:57.3]} 5. c3 {[%clk 0:02:30.4]}
5... Nf6 {[%clk 0:02:56.2]} 6. Re1 {[%clk 0:02:29.8]} 6... O-O {[%clk
0:02:54.4]} 7. h3 {[%clk 0:02:29.8]} 7... d6 {[%clk 0:02:47]} 8. d4 {[%clk
0:02:26.2]} 8... cxd4 {[%clk 0:02:46]} 9. cxd4 {[%clk 0:02:27.1]} 9... a6 {[%clk
0:02:27.5]} 10. Bf1 {[%clk 0:02:22.1]} 10... b5 {[%clk 0:02:22.3]} 11. a3 {[%clk
0:02:16.4]} 11... Bb7 {[%clk 0:02:21.1]} 12. Nc3 {[%clk 0:02:16.4]} 12... Rc8
{[%clk 0:02:15.1]} 13. Bg5 {[%clk 0:02:13]} 13... Na5 {[%clk 0:01:52.5]} 14. Nd2
{[%clk 0:02:08.6]} 14... Nd7 {[%clk 0:01:43.6]} 15. Be3 {[%clk 0:01:53.9]} 15...
e5 {[%clk 0:01:17.8]} 16. d5 {[%clk 0:01:51.9]} 16... f5 {[%clk 0:01:02.2]} 17.
f3 {[%clk 0:01:51.5]} 17... f4 {[%clk 0:00:55.4]} 18. Bf2 {[%clk 0:01:51.4]}
18... g5 {[%clk 0:00:44.8]} 19. Rc1 {[%clk 0:01:50.6]} 19... h5 {[%clk
0:00:36.8]} 20. b4 {[%clk 0:01:49.8]} 20... Nc4 {[%clk 0:00:34.7]} 21. Nxc4
{[%clk 0:01:50.5]} 21... bxc4 {[%clk 0:00:34.6]} 22. Na4 {[%clk 0:01:51.4]}
22... Nf6 {[%clk 0:00:23.6]} 23. Nb6 {[%clk 0:01:50.1]} 23... Rb8 {[%clk
0:00:19.3]} 24. Be2 {[%clk 0:01:46.8]} 24... Rf7 {[%clk 0:00:16.8]} 25. Rxc4
{[%clk 0:01:45.7]} 25... Bf8 {[%clk 0:00:16.2]} 26. Qd2 {[%clk 0:01:42]} 26...
Rg7 {[%clk 0:00:15.9]} 27. Kf1 {[%clk 0:01:38.6]} 27... g4 {[%clk 0:00:16]} 28.
hxg4 {[%clk 0:01:39.2]} 28... hxg4 {[%clk 0:00:15.6]} 29. Rec1 {[%clk
0:01:39.3]} 29... Qe8 {[%clk 0:00:14.8]} 30. Rc7 {[%clk 0:01:26.9]} 30... Be7
{[%clk 0:00:09.5]} 31. Qd3 {[%clk 0:01:23.1]} 31... Qh5 {[%clk 0:00:08.6]} 32.
Ke1 {[%clk 0:01:22.9]} 32... gxf3 {[%clk 0:00:06.1]} 33. gxf3 {[%clk 0:01:22.8]}
33... Qh1+ {[%clk 0:00:05.6]} 34. Kd2 {[%clk 0:01:22]} 34... Qh2 {[%clk
0:00:05.7]} 35. Bc5 {[%clk 0:01:13.8]} 35... dxc5 {[%clk 0:00:04.3]} 36. d6
{[%clk 0:01:14.5]} 36... Bxd6 {[%clk 0:00:03.7]} 37. Qxd6 {[%clk 0:01:12.8]}
37... Rxc7 {[%clk 0:00:02.6]} 38. Qxc7 {[%clk 0:01:12.7]} 38... Rf8 {[%clk
0:00:02.1]} 39. Qxb7 {[%clk 0:01:12.7]} 39... Qf2 {[%clk 0:00:01.8]} 40. Rc3
{[%clk 0:01:07.9]} 1-0

[Event "*** Titled Tuesday Blitz"]
[Site "Chess.com"]
[Date "2020.05.26"]
[Round "2"]
[White "Kirill_Klukin"]
[Black "ElliPaehtz"]
[Result "0-1"]
[WhiteElo "2695"]
[BlackElo "2491"]
[TimeControl "180+1"]
[EndTime "10:17:03 PDT"]
[Termination "ElliPaehtz won by resignation"]

1. c4 {[%clk 0:02:58.9]} 1... b6 {[%clk 0:02:59.4]} 2. Nc3 {[%clk 0:02:58.6]}
2... Bb7 {[%clk 0:02:59]} 3. Nf3 {[%clk 0:02:56.2]} 3... e6 {[%clk 0:02:58.9]}
4. g3 {[%clk 0:02:56]} 4... Bxf3 {[%clk 0:02:57.9]} 5. exf3 {[%clk 0:02:55.5]}
5... c5 {[%clk 0:02:57.6]} 6. Bg2 {[%clk 0:02:55.7]} 6... Nc6 {[%clk 0:02:56.5]}
7. O-O {[%clk 0:02:55.3]} 7... g6 {[%clk 0:02:53.8]} 8. b3 {[%clk 0:02:52.6]}
8... Bg7 {[%clk 0:02:53.4]} 9. Bb2 {[%clk 0:02:52.8]} 9... Nge7 {[%clk
0:02:50.4]} 10. f4 {[%clk 0:02:52.3]} 10... O-O {[%clk 0:02:49]} 11. Rb1 {[%clk
0:02:44.3]} 11... Nd4 {[%clk 0:02:47.9]} 12. d3 {[%clk 0:02:40.4]} 12... Rc8
{[%clk 0:02:46.8]} 13. a3 {[%clk 0:02:38]} 13... Nec6 {[%clk 0:02:34.9]} 14. Re1
{[%clk 0:02:19.6]} 14... d6 {[%clk 0:02:33.7]} 15. Ne4 {[%clk 0:02:15.6]} 15...
Qd7 {[%clk 0:02:31.6]} 16. h4 {[%clk 0:02:11.3]} 16... f5 {[%clk 0:02:30.7]} 17.
Nd2 {[%clk 0:02:02]} 17... Rce8 {[%clk 0:02:28.6]} 18. b4 {[%clk 0:01:57.1]}
18... Qf7 {[%clk 0:02:27.2]} 19. Bc3 {[%clk 0:01:44.1]} 19... Bf6 {[%clk
0:02:23.5]} 20. Qa4 {[%clk 0:01:20.8]} 20... Qc7 {[%clk 0:02:16.4]} 21. Kh1
{[%clk 0:01:19]} 21... Kg7 {[%clk 0:02:01]} 22. Re3 {[%clk 0:01:16.9]} 22... Re7
{[%clk 0:02:00.5]} 23. Rbe1 {[%clk 0:01:16.2]} 23... Rfe8 {[%clk 0:01:55.1]} 24.
Qd1 {[%clk 0:01:14.7]} 24... a5 {[%clk 0:01:52.5]} 25. bxa5 {[%clk 0:01:06]}
25... Nxa5 {[%clk 0:01:46.9]} 26. Nf3 {[%clk 0:00:53.4]} 26... Nac6 {[%clk
0:01:39.6]} 27. Ng5 {[%clk 0:00:51]} 27... h6 {[%clk 0:01:33.1]} 28. Bxc6 {[%clk
0:00:40.9]} 28... Qxc6+ {[%clk 0:01:32.1]} 29. Kg1 {[%clk 0:00:39.8]} 29... hxg5
{[%clk 0:01:24.8]} 30. hxg5 {[%clk 0:00:38.5]} 30... Ne2+ {[%clk 0:01:15.5]} 31.
Qxe2 {[%clk 0:00:12.1]} 31... Bxc3 {[%clk 0:01:14.7]} 32. Rb1 {[%clk 0:00:13]}
32... Bd4 {[%clk 0:01:12.9]} 33. Rf3 {[%clk 0:00:12.2]} 33... Rh8 {[%clk
0:01:11.1]} 34. Kg2 {[%clk 0:00:10.7]} 34... e5 {[%clk 0:01:09.8]} 35. fxe5
{[%clk 0:00:09.3]} 35... Rxe5 {[%clk 0:01:07.5]} 36. Qd2 {[%clk 0:00:06.9]}
36... Re7 {[%clk 0:01:04]} 37. a4 {[%clk 0:00:05.6]} 37... Rh2+ {[%clk
0:01:01.1]} 38. Kxh2 {[%clk 0:00:05.4]} 38... Qxf3 {[%clk 0:01:01.4]} 0-1

[Event "*** Titled Tuesday Blitz"]
[Site "Chess.com"]
[Date "2020.05.26"]
[Round "2"]
[White "Bubachess1608"]
[Black "jacky72"]
[Result "0-1"]
[WhiteElo "2300"]
[BlackElo "2641"]
[TimeControl "180+1"]
[EndTime "10:17:03 PDT"]
[Termination "jacky72 won on time"]

1. e4 {[%clk 0:03:00.9]} 1... e5 {[%clk 0:03:00.1]} 2. Bc4 {[%clk 0:02:58.9]}
2... Nc6 {[%clk 0:03:01]} 3. Nf3 {[%clk 0:02:56.9]} 3... Bc5 {[%clk 0:03:00.4]}
4. d3 {[%clk 0:02:56.3]} 4... Nf6 {[%clk 0:02:59.5]} 5. O-O {[%clk 0:02:56]}
5... d6 {[%clk 0:02:59.9]} 6. Bb3 {[%clk 0:02:55.9]} 6... h6 {[%clk 0:02:58.5]}
7. c3 {[%clk 0:02:55.6]} 7... a6 {[%clk 0:02:58.4]} 8. Re1 {[%clk 0:02:55]} 8...
Ba7 {[%clk 0:02:58.7]} 9. h3 {[%clk 0:02:54.5]} 9... g5 {[%clk 0:02:58.5]} 10.
d4 {[%clk 0:02:50.8]} 10... g4 {[%clk 0:02:58.4]} 11. hxg4 {[%clk 0:02:46.2]}
11... Bxg4 {[%clk 0:02:59.3]} 12. Qd3 {[%clk 0:02:37.4]} 12... Rg8 {[%clk
0:02:55]} 13. Kf1 {[%clk 0:02:30.9]} 13... Qe7 {[%clk 0:02:44.5]} 14. Nbd2
{[%clk 0:02:13.5]} 14... O-O-O {[%clk 0:02:43.1]} 15. d5 {[%clk 0:01:57.4]}
15... Nb8 {[%clk 0:02:39.4]} 16. Bd1 {[%clk 0:01:54.1]} 16... Nh5 {[%clk
0:02:39.1]} 17. Nc4 {[%clk 0:01:50.2]} 17... Qf6 {[%clk 0:02:32.4]} 18. b4
{[%clk 0:01:42.5]} 18... Rg6 {[%clk 0:02:30.7]} 19. a4 {[%clk 0:01:37.3]} 19...
Rdg8 {[%clk 0:02:30.7]} 20. b5 {[%clk 0:01:36.5]} 20... Nf4 {[%clk 0:02:27.6]}
21. Bxf4 {[%clk 0:01:34.4]} 21... Qxf4 {[%clk 0:02:28.5]} 22. b6 {[%clk
0:01:30.4]} 22... Bxb6 {[%clk 0:02:23.4]} 23. Nxb6+ {[%clk 0:01:28.4]} 23...
cxb6 {[%clk 0:02:24.3]} 24. Rb1 {[%clk 0:01:27.4]} 24... Nd7 {[%clk 0:02:24.4]}
25. a5 {[%clk 0:01:18.8]} 25... bxa5 {[%clk 0:02:03.6]} 26. Nh4 {[%clk
0:00:29.9]} 26... Be2+ {[%clk 0:01:50.6]} 27. Kxe2 {[%clk 0:00:25.9]} 27... Qxh4
{[%clk 0:01:45.7]} 28. g3 {[%clk 0:00:21.3]} 28... Qg5 {[%clk 0:01:40.2]} 29.
Bb3 {[%clk 0:00:18.1]} 29... Rf6 {[%clk 0:01:34]} 30. Rf1 {[%clk 0:00:15.4]}
30... Qg4+ {[%clk 0:01:30.4]} 31. Kd2 {[%clk 0:00:14.1]} 31... Nc5 {[%clk
0:01:29.8]} 32. Qe3 {[%clk 0:00:12]} 32... Qxe4 {[%clk 0:01:25.2]} 33. Bc2
{[%clk 0:00:09.7]} 33... Qxd5+ {[%clk 0:01:22.9]} 34. Kc1 {[%clk 0:00:08.7]}
34... Rf3 {[%clk 0:01:23.1]} 35. Qxh6 {[%clk 0:00:05]} 35... Rxc3 {[%clk
0:01:21.6]} 36. Rd1 {[%clk 0:00:03.9]} 36... Nd3+ {[%clk 0:01:08.9]} 37. Rxd3
{[%clk 0:00:03.5]} 37... Qxd3 {[%clk 0:01:09.8]} 38. Qd2 {[%clk 0:00:02.5]}
38... Qxd2+ {[%clk 0:01:08.3]} 39. Kxd2 {[%clk 0:00:02.4]} 39... Rc5 {[%clk
0:01:09.2]} 40. Be4 {[%clk 0:00:02]} 40... b5 {[%clk 0:01:09.3]} 0-1

[Event "*** Titled Tuesday Blitz"]
[Site "Chess.com"]
[Date "2020.05.26"]
[Round "2"]
[White "Nathan_Filgueiras"]
[Black "NefeLV"]
[Result "1-0"]
[WhiteElo "2321"]
[BlackElo "1790"]
[TimeControl "180+1"]
[EndTime "10:17:05 PDT"]
[Termination "Nathan_Filgueiras won on time"]

1. e4 {[%clk 0:03:00.9]} 1... e6 {[%clk 0:02:58.5]} 2. d4 {[%clk 0:02:59.2]}
2... d5 {[%clk 0:02:38.8]} 3. Nd2 {[%clk 0:02:55.3]} 3... Nf6 {[%clk 0:02:33.5]}
4. e5 {[%clk 0:02:54.9]} 4... Nfd7 {[%clk 0:02:32.7]} 5. Bd3 {[%clk 0:02:54.1]}
5... c5 {[%clk 0:02:32.6]} 6. c3 {[%clk 0:02:54.7]} 6... Nc6 {[%clk 0:02:28.8]}
7. Ne2 {[%clk 0:02:54.9]} 7... cxd4 {[%clk 0:02:25.2]} 8. cxd4 {[%clk
0:02:54.8]} 8... Qb6 {[%clk 0:02:25.8]} 9. Nf3 {[%clk 0:02:48.9]} 9... f6 {[%clk
0:02:21.1]} 10. exf6 {[%clk 0:02:43.8]} 10... Nxf6 {[%clk 0:02:22]} 11. O-O
{[%clk 0:02:43.8]} 11... Bd6 {[%clk 0:02:20.1]} 12. Bf4 {[%clk 0:02:44]} 12...
Bxf4 {[%clk 0:02:18.6]} 13. Nxf4 {[%clk 0:02:44.9]} 13... O-O {[%clk 0:02:18.8]}
14. Rb1 {[%clk 0:02:44]} 14... Bd7 {[%clk 0:02:11.9]} 15. Re1 {[%clk 0:02:33.6]}
15... Rae8 {[%clk 0:02:09.7]} 16. b4 {[%clk 0:02:09.1]} 16... g6 {[%clk
0:01:52.8]} 17. Bc2 {[%clk 0:01:08.7]} 17... Ng4 {[%clk 0:01:44]} 18. Ne2 {[%clk
0:00:55.7]} 18... Qc7 {[%clk 0:01:20.6]} 19. Ng3 {[%clk 0:00:50]} 19... Rf4
{[%clk 0:01:01.5]} 20. h3 {[%clk 0:00:44.2]} 20... Nh6 {[%clk 0:00:53.9]} 21. b5
{[%clk 0:00:43.5]} 21... Ne7 {[%clk 0:00:48.4]} 22. Ne5 {[%clk 0:00:43.1]} 22...
Ref8 {[%clk 0:00:44.8]} 23. f3 {[%clk 0:00:38.8]} 23... Bc8 {[%clk 0:00:27.1]}
24. Qd2 {[%clk 0:00:37.7]} 24... Qb6 {[%clk 0:00:17.8]} 25. Ne2 {[%clk
0:00:37.4]} 25... Nhf5 {[%clk 0:00:05]} 26. Qxf4 {[%clk 0:00:32.8]} 1-0